[Event "AUT Bundesliga 2021-22"]
[Site "Graz"]
[Date "2021.11.04"]
[Round "1.24"]
[White "de Francesco, Klaus"]
[Black "Freitag, Manfred"]
[Result "1/2-1/2"]
[ECO "A45"]
[WhiteElo "2178"]
[BlackElo "2364"]
[Annotator "NA"]
[PlyCount "93"]
[EventDate "2021.01.17"]
[EventType "team-tourn"]
[EventCountry "AUT"]
[SourceTitle "playchess.com"]
[Source "ChessBase"]
[SourceQuality "1"]
[TimeControl "40/5400+30:1800+30"]

1. d4 {[%emt 0:00:04]} Nf6 {[%emt 0:00:11]} 2. Bg5 {[%emt 0:00:08]} d5 {[%emt 0:00:05]} 3. e3 {[%emt 0:00:10]} c5 {[%emt 0:00:17]} 4. Bxf6 {[%emt 0:00:15]} gxf6 {[%emt 0:00:17]} 5. Nc3 {[%emt 0:00:14]} e6 {[%emt 0:01:29]} 6. Qh5 {[%emt 0:00:55]} cxd4 {[%emt 0:08:08]} 7. exd4 {[%emt 0:00:30]} Nc6 {[%emt 0:00:04]} 8. Nf3 {[%emt 0:00:27]} Bb4 {[%emt 0:07:21]} 9. Bb5 {[%emt 0:05:03]} Bd7 {[%emt 0:18:24]} 10. O-O {[%emt 0:01:15]} Bxc3 {[%emt 0:06:24]} 11. bxc3 {[%emt 0:00:18]} Na5 {[%emt 0:00:06]} 12. Bd3 {[%emt 0:03:36]} Qe7 {[%emt 0:05:25]} 13. Rfe1 {[%emt 0:00:51]} O-O-O {[%emt 0:00:32]} 14. Qxd5 {[%emt 0:01:45]} exd5 {[%emt 0:10:32]} 15. Rxe7 {[%emt 0:00:22]} Be6 {[%emt 0:00:02]} 16. Rb1 {[%emt 0:02:35]} Kb8 {[%emt 0:00:07]} 17. Ba6 {[%emt 0:05:04]} Rhe8 {[%emt 0:17:28]} 18. Rxe8 {[%emt 0:04:40]} Rxe8 {[%emt 0:00:02]} 19. Bd3 {[%emt 0:01:03]} h6 {[%emt 0:00:03]} 20. Nh4 {[%emt 0:02:04]} Rc8 {[%emt 0:01:06]} 21. f4 {[%emt 0:01:06]} Rxc3 {[%emt 0:00:18]} 22. f5 {[%emt 0:00:26]} Bd7 {[%emt 0:00:09]} 23. g4 {[%emt 0:03:25]} Ba4 {[%emt 0:01:44]} 24. Re1 {[%emt 0:01:22]} Nc6 {[%emt 0:02:45]} 25. Re8+ {[%emt 0:02:36]} Kc7 {[%emt 0:00:01]} 26. Rf8 {[%emt 0:00:28]} Nd8 {[%emt 0:00:21]} 27. Rh8 {[%emt 0:00:32]} Bxc2 {[%emt 0:00:08]} 28. Bxc2 {[%emt 0:00:15]} Rxc2 {[%emt 0:00:01]} 29. Rxh6 {[%emt 0:00:13]} Rxa2 {[%emt 0:00:37]} 30. Rxf6 {[%emt 0:00:18]} Re2 {[%emt 0:00:43]} 31. g5 {[%emt 0:01:15]} a5 {[%emt 0:00:27]} 32. g6 {[%emt 0:01:08]} fxg6 {[%emt 0:00:47]} 33. fxg6 {[%emt 0:00:12]} Ne6 {[%emt 0:18:15]} 34. g7 {[%emt 0:05:36]} Nxg7 {[%emt 0:00:11]} 35. Rf7+ {[%emt 0:00:04]} Kc6 {[%emt 0:00:59]} 36. Rxg7 {[%emt 0:00:07]} a4 {[%emt 0:00:03]} 37. Rg3 {[%emt 0:05:06]} Kb5 {[%emt 0:00:40]} 38. Nf5 {[%emt 0:01:35]} Ka5 {[%emt 0:02:02]} 39. Ne3 {[%emt 0:11:55]} b5 {[%emt 0:01:11]} 40. Nxd5 {[%emt 0:00:00]} Re6 {[%emt 0:00:00]} 41. Nc3 {[%emt 0:05:23]} Rd6 {[%emt 0:00:47]} 42. Rg5 {[%emt 0:02:20]} Rb6 {[%emt 0:10:18]} 43. Kf2 {[%emt 0:02:51]} a3 {[%emt 0:02:20]} 44. Ke3 {[%emt 0:00:32]} Ka6 {[%emt 0:00:44]} 45. Kd3 {[%emt 0:00:49]} Rh6 {[%emt 0:02:44]} 46. Rxb5 {[%emt 0:10:30]} a2 {[%emt 0:00:37]} 47. Ke4 1/2-1/2

[Event "AUT Bundesliga 2021-22"]
[Site "Graz"]
[Date "2022.03.24"]
[Round "5.3"]
[White "Schwabeneder, Florian"]
[Black "Atlas, Valery"]
[Result "0-1"]
[ECO "A15"]
[WhiteElo "2437"]
[BlackElo "2423"]
[Annotator "NA"]
[PlyCount "64"]
[EventDate "2021.11.04"]
[EventType "team-tourn"]
[EventCountry "AUT"]
[SourceTitle "playchess.com"]
[Source "ChessBase"]
[SourceQuality "1"]
[TimeControl "40/5400+30:1800+30"]

1. c4 {[%emt 0:00:06]} Nf6 {[%emt 0:00:18]} 2. g3 {[%emt 0:00:53]} c5 {[%emt 0:00:50]} 3. Bg2 {[%emt 0:00:22]} Nc6 {[%emt 0:00:37]} 4. Nc3 {[%emt 0:03:54]} g6 {[%emt 0:00:33]} 5. Nf3 {[%emt 0:00:38]} e5 {[%emt 0:00:13]} 6. O-O {[%emt 0:02:00]} Bg7 {[%emt 0:00:08]} 7. d3 {[%emt 0:05:04]} O-O {[%emt 0:00:30]} 8. a3 {[%emt 0:09:34]} d6 {[%emt 0:00:34]} 9. Rb1 {[%emt 0:02:18]} a5 {[%emt 0:00:23]} 10. Bg5 {[%emt 0:07:37]} h6 {[%emt 0:00:36]} 11. Bxf6 {[%emt 0:00:07]} Bxf6 {[%emt 0:00:16]} 12. Nd5 {[%emt 0:11:47]} Bg7 {[%emt 0:00:50]} 13. b4 {[%emt 0:03:44]} axb4 $14 {[%emt 0:10:02]} 14. axb4 {[%emt 0:00:14]} cxb4 {[%emt 0:00:15]} 15. Nxb4 {[%emt 0:01:19]} Ne7 {[%emt 0:03:13]} 16. Nd2 {[%emt 0:04:28]} f5 {[%emt 0:05:23]} 17. Nd5 {[%emt 0:01:49]} Ra7 {[%emt 0:01:51]} 18. Nxe7+ {[%emt 0:03:46]} Qxe7 {[%emt 0:00:06]} 19. Rb5 {[%emt 0:05:55]} h5 {[%emt 0:05:41]} 20. e3 {[%emt 0:19:03]} Kh8 {[%emt 0:17:26]} 21. Qb3 {[%emt 0:07:16]} f4 22. Rb1 fxe3 {[%emt 0:04:04]} 23. fxe3 {[%emt 0:00:33]} Bh6 {[%emt 0:00:48]} 24. Nf1 {[%emt 0:01:16]} Qf6 {[%emt 0:03:50]} 25. Qc2 {[%emt 0:00:47]} h4 {[%emt 0:03:50]} 26. Qe2 {[%emt 0:04:27]} h3 {[%emt 0:01:43]} 27. Be4 {[%emt 0:00:32]} Bg4 {[%emt 0:11:37]} 28. Qd2 {[%emt 0:00:30]} b6 {[%emt 0:00:41]} 29. Bd5 {[%emt 0:00:43]} Bf3 {[%emt 0:02:48]} 30. Rxb6 {[%emt 0:02:27]} Bxd5 {[%emt 0:00:37]} 31. cxd5 {[%emt 0:00:00]} Raf7 32. Qe2 Qxf1+ {[%emt 0:02:02]} 0-1

[Event "AUT Bundesliga 2021-22"]
[Site "Graz"]
[Date "2022.03.24"]
[Round "5.4"]
[White "Baenziger, Fabian"]
[Black "Leisch, Lukas"]
[Result "1/2-1/2"]
[ECO "D11"]
[WhiteElo "2418"]
[BlackElo "2403"]
[Annotator "NA"]
[PlyCount "60"]
[EventDate "2021.11.04"]
[EventType "team-tourn"]
[EventCountry "AUT"]
[SourceTitle "playchess.com"]
[Source "ChessBase"]
[SourceQuality "1"]
[TimeControl "40/5400+30:1800+30"]

1. d4 {[%emt 0:00:04]} d5 {[%emt 0:00:07]} 2. c4 {[%emt 0:00:07]} c6 {[%emt 0:00:06]} 3. Nf3 {[%emt 0:00:27]} Nf6 {[%emt 0:00:08]} 4. e3 {[%emt 0:00:21]} e6 $11 {[%emt 0:00:12]} 5. Bd3 {[%emt 0:01:16]} dxc4 {[%emt 0:08:15]} 6. Bxc4 {[%emt 0:00:07]} b5 {[%emt 0:00:05]} 7. Be2 {[%emt 0:02:23]} a6 {[%emt 0:07:21]} 8. O-O {[%emt 0:04:12]} Nbd7 {[%emt 0:02:54]} 9. a4 {[%emt 0:09:59]} Bb7 {[%emt 0:05:42]} 10. Nbd2 {[%emt 0:01:04]} Bd6 {[%emt 0:03:32]} 11. Ng5 {[%emt 0:23:58]} O-O {[%emt 0:03:45]} 12. Bf3 {[%emt 0:15:48]} Qc7 {[%emt 0:07:39]} 13. h3 {[%emt 0:00:23]} c5 {[%emt 0:05:05]} 14. Bxb7 {[%emt 0:06:15]} Qxb7 {[%emt 0:00:12]} 15. axb5 {[%emt 0:00:19]} axb5 {[%emt 0:00:48]} 16. Rxa8 {[%emt 0:00:05]} Rxa8 {[%emt 0:00:29]} 17. Nge4 {[%emt 0:04:52]} Nxe4 {[%emt 0:07:43]} 18. Nxe4 {[%emt 0:00:57]} Qxe4 {[%emt 0:00:11]} 19. dxc5 {[%emt 0:00:05]} Bh2+ {[%emt 0:07:24]} 20. Kxh2 {[%emt 0:00:39]} Nxc5 {[%emt 0:00:06]} 21. Qd6 {[%emt 0:22:11]} Qd3 {[%emt 0:02:22]} 22. Rd1 {[%emt 0:00:04]} Qxd6+ {[%emt 0:00:06]} 23. Rxd6 {[%emt 0:00:03]} Kf8 {[%emt 0:12:41]} 24. Bd2 {[%emt 0:02:18]} Ne4 {[%emt 0:01:00]} 25. Rd4 {[%emt 0:00:05]} Nxd2 {[%emt 0:01:16]} 26. Rxd2 {[%emt 0:00:04]} Ke7 {[%emt 0:00:09]} 27. Kg3 {[%emt 0:00:20]} Rc8 {[%emt 0:02:52]} 28. Kf3 {[%emt 0:02:00]} Rc1 {[%emt 0:01:46]} 29. Ke2 {[%emt 0:01:17]} Rg1 {[%emt 0:00:21]} 30. Kf3 {[%emt 0:00:04]} Rc1 {[%emt 0:00:05]} 1/2-1/2

[Event "AUT Bundesliga 2021-22"]
[Site "Graz"]
[Date "2022.03.24"]
[Round "5.5"]
[White "Singer, Christoph"]
[Black "Fecker, Noah"]
[Result "1/2-1/2"]
[ECO "A04"]
[WhiteElo "2345"]
[BlackElo "2328"]
[Annotator "NA"]
[PlyCount "82"]
[EventDate "2021.11.04"]
[EventType "team-tourn"]
[EventCountry "AUT"]
[SourceTitle "playchess.com"]
[Source "ChessBase"]
[SourceQuality "1"]
[TimeControl "40/5400+30:1800+30"]

1. Nf3 {[%emt 0:00:38]} c5 {[%emt 0:00:05]} 2. e3 {[%emt 0:00:56]} Nc6 {[%emt 0:02:06]} 3. d4 {[%emt 0:00:53]} cxd4 {[%emt 0:02:51]} 4. exd4 {[%emt 0:00:14]} d5 {[%emt 0:00:09]} 5. c3 {[%emt 0:01:18]} Nf6 {[%emt 0:04:48]} 6. Bf4 {[%emt 0:02:12]} g6 {[%emt 0:07:23]} 7. Bd3 {[%emt 0:01:50]} Bg7 {[%emt 0:00:40]} 8. O-O {[%emt 0:02:18]} O-O {[%emt 0:01:03]} 9. Nbd2 {[%emt 0:05:52]} Bf5 {[%emt 0:03:12]} 10. Bxf5 {[%emt 0:00:20]} gxf5 {[%emt 0:00:02]} 11. Ne5 {[%emt 0:00:34]} e6 {[%emt 0:04:49]} 12. Nd3 {[%emt 0:09:28]} Ne4 {[%emt 0:08:55]} 13. f3 {[%emt 0:08:35]} Nxd2 {[%emt 0:07:21]} 14. Qxd2 {[%emt 0:00:24]} Ne7 {[%emt 0:02:55]} 15. Bh6 {[%emt 0:08:45]} Ng6 {[%emt 0:01:44]} 16. Kh1 {[%emt 0:02:26]} Bxh6 {[%emt 0:08:22]} 17. Qxh6 {[%emt 0:00:13]} Qh4 {[%emt 0:02:13]} 18. Qxh4 {[%emt 0:06:17]} Nxh4 {[%emt 0:00:01]} 19. a4 {[%emt 0:01:04]} Rfe8 {[%emt 0:11:47]} 20. a5 {[%emt 0:09:45]} Re7 {[%emt 0:00:47]} 21. Ra4 {[%emt 0:03:25]} Kf8 {[%emt 0:02:59]} 22. Rb4 {[%emt 0:02:02]} Rc8 {[%emt 0:01:11]} 23. Ra1 {[%emt 0:04:36]} Ke8 {[%emt 0:01:32]} 24. Kg1 {[%emt 0:01:39]} Kd8 {[%emt 0:01:58]} 25. Kf2 {[%emt 0:03:25]} Rcc7 {[%emt 0:01:03]} 26. Ra3 {[%emt 0:07:25]} Kc8 {[%emt 0:03:03]} 27. Rab3 {[%emt 0:00:24]} Ng6 {[%emt 0:03:25]} 28. g3 {[%emt 0:05:21]} f6 {[%emt 0:07:48]} 29. Rb5 {[%emt 0:04:58]} Rg7 {[%emt 0:04:35]} 30. Nc5 {[%emt 0:01:23]} Rge7 {[%emt 0:00:05]} 31. Nd3 {[%emt 0:00:19]} Rg7 {[%emt 0:00:09]} 32. Nc5 {[%emt 0:00:05]} Rge7 {[%emt 0:00:02]} 33. a6 {[%emt 0:03:54]} b6 {[%emt 0:00:31]} 34. Nd3 {[%emt 0:00:19]} Kd7 {[%emt 0:01:08]} 35. Ra3 {[%emt 0:00:26]} Kd6 {[%emt 0:00:46]} 36. Nb4 {[%emt 0:00:48]} h5 {[%emt 0:01:30]} 37. Ra1 {[%emt 0:00:06]} h4 {[%emt 0:02:36]} 38. Nd3 {[%emt 0:02:49]} Rh7 {[%emt 0:01:22]} 39. Ke3 {[%emt 0:01:12]} hxg3 {[%emt 0:01:13]} 40. hxg3 {[%emt 0:00:00]} Kc6 {[%emt 0:00:00]} 41. Rb4 {[%emt 0:08:13]} Kd6 {[%emt 0:06:20]} 1/2-1/2

[Event "AUT Bundesliga 2021-22"]
[Site "Graz"]
[Date "2022.03.24"]
[Round "5.6"]
[White "Novkovic, Milan"]
[Black "Webersberger, Johann"]
[Result "1/2-1/2"]
[ECO "A40"]
[WhiteElo "2360"]
[BlackElo "2321"]
[Annotator "NA"]
[PlyCount "60"]
[EventDate "2021.11.04"]
[EventType "team-tourn"]
[EventCountry "AUT"]
[SourceTitle "playchess.com"]
[Source "ChessBase"]
[SourceQuality "1"]
[TimeControl "40/5400+30:1800+30"]

1. d4 {[%emt 0:00:06]} g6 {[%emt 0:00:04]} 2. c4 {[%emt 0:01:59]} d6 {[%emt 0:00:05]} 3. e4 {[%emt 0:01:25]} e5 {[%emt 0:00:05]} 4. Nf3 {[%emt 0:01:33]} exd4 {[%emt 0:06:33]} 5. Nxd4 {[%emt 0:00:15]} Bg7 {[%emt 0:00:05]} 6. Nc3 {[%emt 0:01:10]} Nc6 {[%emt 0:02:50]} 7. Be3 {[%emt 0:00:42]} Nge7 {[%emt 0:12:11]} 8. Qd2 {[%emt 0:01:05]} O-O {[%emt 0:08:21]} 9. Be2 {[%emt 0:02:14]} f5 {[%emt 0:00:35]} 10. exf5 {[%emt 0:03:40]} Bxd4 {[%emt 0:05:17]} 11. Bxd4 {[%emt 0:00:13]} Nxf5 {[%emt 0:00:11]} 12. Be3 {[%emt 0:00:15]} Nxe3 {[%emt 0:02:03]} 13. Qxe3 {[%emt 0:00:14]} Qf6 $14 {[%emt 0:08:28]} 14. O-O {[%emt 0:07:05]} Bf5 {[%emt 0:04:40]} 15. Qd2 {[%emt 0:07:15]} Nd4 {[%emt 0:18:47]} 16. Rad1 {[%emt 0:07:00]} c5 {[%emt 0:17:49]} 17. Nb5 {[%emt 0:23:20]} Nxb5 {[%emt 0:00:24]} 18. cxb5 {[%emt 0:02:17]} Rad8 {[%emt 0:00:00]} 19. Bf3 {[%emt 0:06:53]} b6 {[%emt 0:01:51]} 20. Rfe1 {[%emt 0:01:49]} Kg7 {[%emt 0:00:57]} 21. Bd5 {[%emt 0:06:16]} Rfe8 {[%emt 0:02:49]} 22. h3 {[%emt 0:03:56]} Be6 {[%emt 0:01:32]} 23. b3 {[%emt 0:03:51]} Bxd5 {[%emt 0:00:34]} 24. Qxd5 {[%emt 0:01:26]} Qf7 {[%emt 0:01:21]} 25. Rxe8 {[%emt 0:02:07]} Qxe8 {[%emt 0:00:02]} 26. Qc4 {[%emt 0:02:55]} d5 {[%emt 0:01:27]} 27. Rxd5 {[%emt 0:00:55]} Qe1+ {[%emt 0:00:03]} 28. Kh2 {[%emt 0:00:05]} Rxd5 {[%emt 0:00:08]} 29. Qxd5 {[%emt 0:00:05]} Qxf2 {[%emt 0:00:04]} 30. Qd7+ {[%emt 0:03:31]} Kh6 {[%emt 0:00:12]} 1/2-1/2

[Event "AUT Bundesliga 2021-22"]
[Site "Graz"]
[Date "2022.03.24"]
[Round "5.10"]
[White "Diermair, Andreas"]
[Black "Gschnitzer, Adrian"]
[Result "1/2-1/2"]
[ECO "D45"]
[WhiteElo "2469"]
[BlackElo "2414"]
[Annotator "ChessBase"]
[PlyCount "77"]
[EventDate "2021.11.04"]
[EventType "team-tourn"]
[EventCountry "AUT"]
[SourceTitle "playchess.com"]
[Source "ChessBase"]
[SourceQuality "1"]
[TimeControl "40/5400+30:1800+30"]

1. d4 {[%emt 0:00:05]} d5 {[%emt 0:00:14]} 2. c4 {[%emt 0:00:21]} e6 {[%emt 0:00:09]} 3. Nc3 {[%emt 0:00:15]} c6 {[%emt 0:00:11]} 4. e3 {[%emt 0:01:08]} Nf6 {[%emt 0:00:14]} 5. Nf3 {[%emt 0:01:28]} Nbd7 {[%emt 0:00:21]} 6. Qc2 {[%emt 0:01:09]} Bd6 {[%emt 0:00:16]} 7. Bd3 {[%emt 0:00:09]} dxc4 {[%emt 0:00:09]} 8. Bxc4 {[%emt 0:00:04]} b5 {[%emt 0:00:12]} 9. Be2 {[%emt 0:00:45]} O-O {[%emt 0:01:00]} 10. O-O {[%emt 0:04:49]} Bb7 {[%emt 0:01:19]} 11. e4 {[%emt 0:00:15]} e5 {[%emt 0:00:41]} 12. dxe5 {[%emt 0:00:38]} Nxe5 {[%emt 0:00:03]} 13. Nh4 {[%emt 0:01:23]} b4 {[%emt 0:07:29]} 14. Nf5 {[%emt 0:03:19]} bxc3 {[%emt 0:10:15]} 15. Rd1 {[%emt 0:00:15]} Nd5 {[%emt 0:06:08]} 16. exd5 {[%emt 0:08:41]} cxd5 {[%emt 0:01:01]} 17. Qxc3 {[%emt 0:01:30]} Re8 {[%emt 0:14:30]} 18. Be3 {[%emt 0:20:18]} Bf8 {[%emt 0:04:27]} 19. Qb3 {[%emt 0:07:56]} Qb8 {[%emt 0:19:08]} 20. Nd4 {[%emt 0:14:43]} Nc4 {[%emt 0:09:26]} 21. Bxc4 {[%emt 0:03:04]} dxc4 {[%emt 0:00:01]} 22. Qxc4 {[%emt 0:00:18]} Qe5 {[%emt 0:01:43]} 23. Qb5 {[%emt 0:05:06]} Qe4 {[%emt 0:01:59]} 24. Nf3 {[%emt 0:00:11]} a6 {[%emt 0:01:13]} 25. Qd3 {[%emt 0:06:04]} Qg4 {[%emt 0:02:51]} 26. h3 {[%emt 0:00:11]} Qh5 {[%emt 0:00:46]} 27. Ng5 {[%emt 0:06:24]} Be7 {[%emt 0:03:17]} 28. Qd7 {[%emt 0:05:12]} Bxg5 {[%emt 0:09:40]} 29. Qxb7 {[%emt 0:00:10]} Bxe3 {[%emt 0:00:12]} 30. fxe3 {[%emt 0:00:04]} Qg5 {[%emt 0:02:03]} 31. Qf3 {[%emt 0:01:36]} Qxe3+ {[%emt 0:01:19]} 32. Qxe3 {[%emt 0:00:10]} Rxe3 {[%emt 0:00:01]} 33. Kf2 {[%emt 0:01:51]} Re6 {[%emt 0:00:57]} 34. Rac1 {[%emt 0:01:00]} g6 {[%emt 0:01:08]} 35. Rc3 {[%emt 0:01:35]} Ra7 {[%emt 0:01:28]} 36. Re1 {[%emt 0:01:34]} Rf6+ {[%emt 0:01:16]} 37. Rf3 {[%emt 0:00:12]} Rb6 {[%emt 0:00:20]} 38. Re2 {[%emt 0:00:52]} h5 {[%emt 0:00:26]} 39. Rf4 {[%emt 0:00:42]} 1/2-1/2

[Event "AUT Bundesliga 2021-22"]
[Site "Graz"]
[Date "2022.03.24"]
[Round "5.12"]
[White "Janzelj, Tim"]
[Black "Poetz, Florian"]
[Result "1-0"]
[ECO "A65"]
[WhiteElo "2463"]
[BlackElo "2424"]
[Annotator "ChessBase"]
[PlyCount "101"]
[EventDate "2021.11.04"]
[EventType "team-tourn"]
[EventCountry "AUT"]
[SourceTitle "playchess.com"]
[Source "ChessBase"]
[SourceQuality "1"]
[TimeControl "40/5400+30:1800+30"]

1. d4 {[%emt 0:00:05]} Nf6 {[%emt 0:00:10]} 2. c4 {[%emt 0:00:06]} c5 {[%emt 0:01:32]} 3. d5 {[%emt 0:00:18]} e6 {[%emt 0:00:05]} 4. Nc3 {[%emt 0:00:13]} exd5 {[%emt 0:00:05]} 5. cxd5 {[%emt 0:00:07]} d6 {[%emt 0:00:04]} 6. e4 {[%emt 0:00:51]} g6 {[%emt 0:00:19]} 7. h3 {[%emt 0:00:10]} Bg7 {[%emt 0:00:31]} 8. Nf3 {[%emt 0:00:10]} O-O {[%emt 0:00:34]} 9. Bd3 {[%emt 0:00:11]} a6 {[%emt 0:01:21]} 10. a4 {[%emt 0:00:09]} Nh5 {[%emt 0:01:19]} 11. O-O {[%emt 0:03:11]} Nd7 {[%emt 0:00:48]} 12. Bg5 {[%emt 0:00:49]} Bf6 {[%emt 0:01:31]} 13. Bh6 {[%emt 0:00:33]} Bg7 {[%emt 0:06:51]} 14. Bg5 {[%emt 0:06:29]} Bf6 {[%emt 0:02:20]} 15. Be3 {[%emt 0:00:11]} Re8 {[%emt 0:03:52]} 16. Nd2 {[%emt 0:12:10]} Bd4 {[%emt 0:05:58]} 17. Re1 {[%emt 0:12:44]} Ne5 {[%emt 0:06:47]} 18. Bf1 {[%emt 0:03:03]} Bxe3 {[%emt 0:12:12]} 19. Rxe3 {[%emt 0:00:18]} Nf4 {[%emt 0:00:15]} 20. Rb1 {[%emt 0:17:54]} g5 {[%emt 0:05:48]} 21. Nf3 {[%emt 0:04:24]} Neg6 {[%emt 0:04:04]} 22. Nh2 {[%emt 0:03:54]} Ne5 {[%emt 0:08:52]} 23. g3 {[%emt 0:01:57]} Nfg6 {[%emt 0:00:17]} 24. Qh5 {[%emt 0:02:59]} f5 {[%emt 0:02:48]} 25. exf5 {[%emt 0:02:15]} Bxf5 {[%emt 0:00:06]} 26. Rbe1 {[%emt 0:00:22]} Rf8 {[%emt 0:00:56]} 27. Ng4 {[%emt 0:07:00]} Bxg4 {[%emt 0:08:35]} 28. hxg4 {[%emt 0:00:02]} Kg7 {[%emt 0:04:56]} 29. Bg2 {[%emt 0:06:13]} h6 {[%emt 0:04:43]} 30. Be4 {[%emt 0:00:28]} Qe8 {[%emt 0:03:10]} 31. Rf1 {[%emt 0:09:33]} Ne7 {[%emt 0:03:53]} 32. Qh3 {[%emt 0:02:42]} Qd7 {[%emt 0:00:46]} 33. f3 {[%emt 0:01:47]} Rf7 {[%emt 0:04:07]} 34. Re2 {[%emt 0:00:55]} Raf8 {[%emt 0:00:48]} 35. Ref2 {[%emt 0:00:03]} b5 {[%emt 0:05:30]} 36. axb5 {[%emt 0:00:02]} axb5 {[%emt 0:00:04]} 37. Nd1 {[%emt 0:00:36]} c4 {[%emt 0:01:18]} 38. Kg2 {[%emt 0:00:46]} Qa7 {[%emt 0:00:36]} 39. Re2 {[%emt 0:02:00]} b4 {[%emt 0:01:27]} 40. Ne3 {[%emt 0:00:00]} Qc5 {[%emt 0:00:00]} 41. f4 {[%emt 0:21:34]} gxf4 {[%emt 0:12:00]} 42. gxf4 {[%emt 0:03:16]} Nd3 {[%emt 0:11:09]} 43. Nf5+ {[%emt 0:01:11]} Nxf5 {[%emt 0:00:13]} 44. gxf5 {[%emt 0:00:05]} Rf6 {[%emt 0:01:34]} 45. Kh2 {[%emt 0:03:56]} Qd4 {[%emt 0:02:42]} 46. Rg1+ {[%emt 0:00:33]} Kh8 {[%emt 0:00:36]} 47. Qg4 {[%emt 0:02:00]} R6f7 {[%emt 0:00:34]} 48. Bxd3 {[%emt 0:01:13]} cxd3 {[%emt 0:02:05]} 49. Re6 {[%emt 0:00:06]} Rh7 {[%emt 0:03:18]} 50. Rg6 {[%emt 0:01:32]} Qxd5 {[%emt 0:00:48]} 51. Rg7 {[%emt 0:00:20]} 1-0

[Event "AUT Bundesliga 2021-22"]
[Site "Graz"]
[Date "2022.03.24"]
[Round "5.20"]
[White "Rubil, Marko"]
[Black "Blohberger, Felix"]
[Result "1-0"]
[ECO "B00"]
[WhiteElo "2293"]
[BlackElo "2503"]
[Annotator "ChessBase"]
[PlyCount "157"]
[EventDate "2021.11.04"]
[EventType "team-tourn"]
[EventCountry "AUT"]
[SourceTitle "playchess.com"]
[Source "ChessBase"]
[SourceQuality "1"]
[TimeControl "40/5400+30:1800+30"]

1. e4 {[%emt 0:00:04]} Nc6 {[%emt 0:01:54]} 2. d4 {[%emt 0:05:51]} d5 {[%emt 0:00:32]} 3. e5 {[%emt 0:00:05]} Bf5 {[%emt 0:00:05]} 4. c3 {[%emt 0:00:21]} e6 {[%emt 0:01:58]} 5. f4 {[%emt 0:00:33]} Nge7 {[%emt 0:08:50]} 6. Nf3 {[%emt 0:02:27]} Ng6 {[%emt 0:00:23]} 7. Bd3 {[%emt 0:04:03]} Nh4 {[%emt 0:05:05]} 8. O-O {[%emt 0:10:17]} Bxd3 {[%emt 0:04:54]} 9. Qxd3 {[%emt 0:00:13]} Nxf3+ {[%emt 0:00:06]} 10. Rxf3 {[%emt 0:04:17]} Qd7 {[%emt 0:03:12]} 11. b3 {[%emt 0:08:56]} O-O-O {[%emt 0:02:10]} 12. Nd2 {[%emt 0:11:44]} f6 {[%emt 0:06:04]} 13. a4 {[%emt 0:04:29]} Ne7 {[%emt 0:10:44]} 14. Nf1 {[%emt 0:00:53]} Nf5 {[%emt 0:02:25]} 15. Ne3 {[%emt 0:03:31]} Nh4 {[%emt 0:07:48]} 16. Rh3 {[%emt 0:01:11]} Ng6 {[%emt 0:01:19]} 17. Nc2 {[%emt 0:00:03]} Be7 {[%emt 0:02:01]} 18. b4 {[%emt 0:15:03]} Rdf8 {[%emt 0:03:39]} 19. b5 {[%emt 0:00:16]} Kb8 {[%emt 0:05:10]} 20. Be3 {[%emt 0:01:44]} fxe5 {[%emt 0:04:14]} 21. fxe5 {[%emt 0:00:25]} Nh4 {[%emt 0:03:50]} 22. Nb4 {[%emt 0:04:40]} Nf5 {[%emt 0:02:11]} 23. Rb1 {[%emt 0:01:37]} Bxb4 {[%emt 0:00:36]} 24. Rxb4 {[%emt 0:00:20]} Qf7 {[%emt 0:03:45]} 25. Rb1 {[%emt 0:08:29]} Qg6 {[%emt 0:01:38]} 26. Bc1 {[%emt 0:00:18]} h5 {[%emt 0:08:27]} 27. Ba3 {[%emt 0:00:37]} Rf7 {[%emt 0:01:42]} 28. a5 {[%emt 0:02:27]} b6 {[%emt 0:03:08]} 29. Rc1 {[%emt 0:03:13]} Qg4 {[%emt 0:01:17]} 30. Rf1 {[%emt 0:03:09]} g5 {[%emt 0:02:16]} 31. Rhf3 {[%emt 0:03:54]} Nh4 {[%emt 0:01:57]} 32. Rg3 {[%emt 0:00:12]} Rxf1+ {[%emt 0:00:25]} 33. Qxf1 {[%emt 0:00:01]} Qe4 {[%emt 0:00:09]} 34. a6 {[%emt 0:01:28]} Nf5 {[%emt 0:01:14]} 35. Rd3 {[%emt 0:00:29]} g4 {[%emt 0:01:05]} 36. Bc1 {[%emt 0:00:23]} Rg8 {[%emt 0:01:26]} 37. Rd1 {[%emt 0:00:40]} h4 {[%emt 0:00:32]} 38. Qd3 {[%emt 0:00:34]} Qxd3 {[%emt 0:00:31]} 39. Rxd3 {[%emt 0:00:01]} c6 {[%emt 0:00:23]} 40. bxc6 {[%emt 0:00:00]} Kc7 {[%emt 0:00:00]} 41. Rd2 {[%emt 0:11:26]} Kxc6 {[%emt 0:00:59]} 42. Rb2 {[%emt 0:00:09]} b5 {[%emt 0:02:07]} 43. Kf2 {[%emt 0:06:31]} Kb6 {[%emt 0:03:00]} 44. Ra2 {[%emt 0:00:42]} Rc8 {[%emt 0:10:36]} 45. Ba3 {[%emt 0:00:38]} g3+ {[%emt 0:11:10]} 46. hxg3 {[%emt 0:08:09]} hxg3+ {[%emt 0:00:59]} 47. Ke2 {[%emt 0:00:05]} Rc4 {[%emt 0:02:23]} 48. Bc5+ {[%emt 0:00:27]} Kc6 {[%emt 0:01:18]} 49. Bxa7 {[%emt 0:01:18]} Ra4 {[%emt 0:00:06]} 50. Rxa4 {[%emt 0:00:32]} bxa4 {[%emt 0:00:06]} 51. Bc5 {[%emt 0:00:56]} Nh4 {[%emt 0:00:06]} 52. c4 {[%emt 0:05:26]} Nxg2 {[%emt 0:03:24]} 53. cxd5+ {[%emt 0:00:08]} exd5 {[%emt 0:00:06]} 54. Kf3 {[%emt 0:00:40]} Nf4 {[%emt 0:00:54]} 55. Kxg3 {[%emt 0:00:42]} Ne6 {[%emt 0:00:20]} 56. Kg4 {[%emt 0:01:05]} a3 {[%emt 0:01:08]} 57. a7 {[%emt 0:00:36]} Kb7 {[%emt 0:00:16]} 58. Bxa3 {[%emt 0:00:07]} Nxd4 {[%emt 0:00:31]} 59. Bc5 {[%emt 0:00:22]} Ne6 {[%emt 0:00:34]} 60. Bb6 {[%emt 0:00:14]} d4 {[%emt 0:00:34]} 61. Kf3 {[%emt 0:01:14]} d3 {[%emt 0:00:36]} 62. Be3 {[%emt 0:00:33]} Nd8 {[%emt 0:00:38]} 63. Kf2 {[%emt 0:00:29]} Ne6 {[%emt 0:00:31]} 64. Ke1 {[%emt 0:00:08]} Nf8 {[%emt 0:00:27]} 65. Kd2 {[%emt 0:00:07]} Ne6 {[%emt 0:00:34]} 66. Kxd3 {[%emt 0:00:03]} Nc7 {[%emt 0:00:19]} 67. Ke4 {[%emt 0:00:17]} Ne6 {[%emt 0:00:34]} 68. Kd5 {[%emt 0:01:25]} Ng7 {[%emt 0:00:34]} 69. Bb6 {[%emt 0:00:56]} Nh5 {[%emt 0:00:05]} 70. Kd6 {[%emt 0:00:28]} Ng7 {[%emt 0:00:36]} 71. Kd7 {[%emt 0:00:16]} Ka8 {[%emt 0:00:15]} 72. Ke7 {[%emt 0:00:23]} Nh5 {[%emt 0:00:48]} 73. Be3 {[%emt 0:00:41]} Ng7 {[%emt 0:00:50]} 74. Kf7 {[%emt 0:00:45]} Nf5 {[%emt 0:00:05]} 75. Bc5 {[%emt 0:00:23]} Nh6+ {[%emt 0:00:13]} 76. Kg6 {[%emt 0:00:33]} Ng4 {[%emt 0:00:05]} 77. e6 {[%emt 0:00:15]} Ne5+ {[%emt 0:00:04]} 78. Kf5 {[%emt 0:00:35]} Nc6 {[%emt 0:00:24]} 79. Ke4 {[%emt 0:00:09]} 1-0